bitfinex/quotes_ETHUSD_20220202
["timestamp","ask_amount","ask_price","bid_price","bid_amount"]
[1643773172545,1.51925013,2781.6,2781.0,1.41378]
[1643773173392,1.51925013,2781.6,2781.2,0.89871]
[1643773174790,1.51810605,2781.6,2781.2,0.89871]
[1643773174998,0.898741,2781.7,2781.2,0.89871]
[1643773175192,0.1797,2781.8,2781.3,0.515]
[1643773175393,1.3467,2781.9,2781.3,0.515]
[1643773175593,1.167,2781.9,2781.4,0.89862]
[1643773176748,1.167,2781.9,2781.4,1.41362]
[1643773177151,1.167,2781.9,2781.4,1.71362]
[1643773177354,1.167,2781.9,2781.4,24.76196419]
[1643773177555,1.167,2781.9,2781.4,22.78362]
[1643773177748,1.167,2781.9,2781.4,22.48362]
[1643773177950,1.167,2781.9,2781.4,23.38216]
[1643773178150,1.167,2781.9,2781.4,23.68216]
[1643773178553,1.167,2781.9,2781.4,22.78362]
[1643773179354,1.167,2781.9,2781.4,1.71362]
[1643773179554,1.167,2781.9,2781.4,1.41362]
[1643773179753,1.167,2781.9,2781.4,1.71362]
[1643773180792,1.167,2781.9,2781.4,22.78362]
[1643773181391,1.167,2781.9,2781.4,1.71362]
[1643773182294,1.167,2781.9,2781.4,24.68844472]
[1643773182496,1.167,2781.9,2781.4,22.78362]
[1643773183699,1.167,2781.9,2781.4,1.71362]
[1643773183939,1.167,2781.9,2781.4,22.78362]
[1643773184147,1.167,2781.9,2781.5,1.0]
[1643773184350,1.167,2781.9,2781.6,0.89858]
[1643773188088,1.167,2781.9,2781.6,1.19858]
[1643773192954,1.167,2781.9,2781.6,2.09707]
[1643773194759,1.51900425,2781.8,2781.6,1.79707]
[1643773194957,1.167,2781.9,2781.6,2.09707]
[1643773196592,1.51899126,2781.8,2781.6,2.09707]
[1643773197292,1.167,2781.9,2781.6,2.09707]
[1643773198301,1.167,2781.9,2781.6,4.03019101]
[1643773198495,1.167,2781.9,2781.7,1.0]
[1643773198955,4.7625458,2782.3,2781.8,0.89852]
[1643773199156,1.51894734,2782.2,2781.8,0.89852]
[1643773202261,1.51795256,2782.2,2781.8,0.89852]
[1643773203194,1.46795256,2782.2,2781.8,0.89852]
[1643773203896,1.46795256,2782.2,2781.9,1.90373134]
[1643773204100,0.1797,2782.5,2781.9,1.91211667]
[1643773204301,1.3538,2782.6,2781.9,2.91211667]
[1643773204700,1.3538,2782.6,2781.9,22.07]
[1643773205302,1.3538,2782.6,2781.9,23.86676]
[1643773205703,1.3538,2782.6,2781.9,24.16676]
[1643773205904,1.3538,2782.6,2782.1,0.89836]
[1643773206110,1.1741,2782.6,2782.1,1.41336]
[1643773206305,1.1741,2782.6,2782.2,1.9154017]
[1643773206557,1.1741,2782.6,2782.2,3.7120217]
[1643773206744,1.1741,2782.6,2782.3,1.3]
[1643773207351,1.1741,2782.6,2782.3,1.6]
[1643773208250,1.1741,2782.6,2782.3,2.49831]
[1643773208658,0.1797,2782.8,2782.4,23.07]
[1643773208856,3.6588,2782.9,2782.5,22.07]
[1643773209053,0.1796,2783.2,2782.5,22.585]
[1643773209254,1.56088092,2783.3,2782.5,23.185]
[1643773209451,1.56088092,2783.3,2782.7,0.89817]
[1643773209651,2.39455413,2783.3,2782.7,0.89817]
[1643773209852,2.39455413,2783.3,2782.7,1.19817]
[1643773211101,3.29277713,2783.3,2782.7,1.19817]
[1643773212503,3.29277713,2783.3,2782.7,0.89817]
[1643773212704,3.29277713,2783.3,2782.7,1.19817]
[1643773214143,2.45910392,2783.3,2782.7,1.19817]
[1643773214947,2.45910392,2783.3,2782.9,0.89818]
[1643773215149,1.56088092,2783.3,2782.9,0.89818]
[1643773215548,1.2233,2783.3,2782.9,0.89818]
[1643773215750,1.2233,2783.3,2783.0,1.93872919]
[1643773215969,1.2233,2783.3,2783.1,0.515]
[1643773216153,1.2233,2783.3,2783.2,0.89803]
[1643773216349,5.44519826,2783.7,2783.2,0.89803]
[1643773216567,2.42989826,2783.7,2783.3,2.515]
[1643773216751,2.42989826,2783.7,2783.4,22.07]
[1643773217151,2.42989826,2783.7,2783.5,0.515]
[1643773217352,0.3506881,2784.1,2783.5,21.885]
[1643773217550,0.3506881,2784.1,2783.6,0.89792]
[1643773217813,1.414,2784.3,2783.7,2.515]
[1643773218015,0.1794,2784.5,2783.7,21.585]
[1643773218311,0.1794,2784.6,2783.8,1.0]
[1643773218511,0.1794,2784.6,2783.8,1.815]
[1643773218713,0.1794,2784.6,2783.9,3.02652447]
[1643773218912,0.1794,2784.6,2784.0,21.9677]
[1643773219117,0.1794,2784.6,2784.0,23.2677]
[1643773219312,0.1794,2784.6,2784.1,1.0]
[1643773220315,0.1794,2784.6,2784.2,0.8977]
[1643773220517,0.32366375,2784.6,2784.1,2.6901546]
[1643773220716,0.32366375,2784.6,2784.1,2.42089569]
[1643773220919,0.32366375,2784.6,2784.1,0.51350709]
[1643773221121,0.32366375,2784.6,2784.2,0.8977]
[1643773221451,0.32366375,2784.6,2784.2,21.9677]
[1643773221656,1.2279,2784.7,2784.2,21.9677]
[1643773221657,1.2279,2784.7,2784.3,1.9032738]
[1643773221854,0.1794,2784.9,2784.4,0.515]
[1643773222053,6.43998872,2785.1,2784.5,2.07963035]
[1643773222054,0.1794,2785.0,2784.5,2.07963035]
[1643773222252,3.57488872,2785.1,2784.5,3.07963035]
[1643773222454,1.133,2785.1,2784.5,24.14963035]
[1643773222752,1.133,2785.1,2784.5,24.74963035]
[1643773222953,1.11595546,2785.1,2784.5,25.64716035]
[1643773223353,1.11595546,2785.1,2784.6,22.48252]
[1643773223553,1.11595546,2785.1,2784.7,1.91701481]
[1643773223756,1.11595546,2785.1,2784.8,0.515]
[1643773224354,1.11595546,2785.1,2784.8,0.815]
[1643773224758,1.11595546,2785.1,2784.8,0.739503]
[1643773225193,1.11595546,2785.1,2784.8,1.636973]
[1643773226399,1.11595546,2785.1,2784.8,22.706973]
[1643773226601,1.11595546,2785.1,2784.9,1.0]
[1643773226806,0.35638937,2785.3,2784.9,1.0]
[1643773227401,2.60838081,2785.5,2784.9,1.0]
[1643773227603,1.51766541,2785.4,2784.9,2.90029761]
[1643773227807,1.51766541,2785.4,2784.9,1.0]
[1643773228502,0.42263152,2785.1,2784.9,1.0]
[1643773228953,1.12380559,2785.5,2784.9,1.0]
[1643773229154,1.51771548,2785.4,2784.9,1.0]
[1643773229952,0.38990295,2785.1,2784.9,1.0]
[1643773231358,1.12380559,2785.5,2784.9,1.0]
[1643773231554,1.51769235,2785.4,2784.9,1.0]
[1643773232554,0.34592003,2785.1,2784.9,1.0]
[1643773233601,1.12380559,2785.5,2784.9,1.0]
[1643773233803,1.51775037,2785.4,2784.9,1.0]
[1643773234403,1.51775037,2785.4,2784.8,22.706973]
[1643773234404,1.51775037,2785.4,2784.6,0.70873572]
[1643773234609,1.51775037,2785.4,2784.4,0.1794]
[1643773234610,0.36583331,2785.3,2784.4,0.1794]
[1643773234805,1.69715037,2785.2,2784.2,1.1794]
[1643773235009,0.41976129,2784.4,2784.2,1.1794]
[1643773235409,0.68568296,2784.8,2784.2,1.1794]
[1643773235607,0.68568296,2784.8,2784.2,0.1794]
[1643773235809,0.68568296,2784.8,2784.2,0.4794]
[1643773236008,0.68568296,2784.8,2784.2,0.1794]
[1643773236444,0.42331128,2784.6,2784.2,0.1794]
[1643773237851,0.42331128,2784.6,2784.1,1.4794]
[1643773238051,0.42331128,2784.6,2784.1,1.7794]
[1643773238851,0.42331128,2784.6,2784.1,1.4794]
[1643773239761,0.42331128,2784.6,2784.1,0.1794]
[1643773239959,1.51812429,2784.5,2784.3,1.5]
[1643773240211,1.70514997,2784.5,2784.3,0.0001]
[1643773240404,0.1794,2784.5,2784.3,0.0001]
[1643773240608,0.35899999,2783.9,2783.3,2.25]
[1643773240808,0.35899999,2783.9,2783.3,0.89795]
[1643773241005,0.35899999,2783.9,2783.3,1.19795]
[1643773241205,0.35899999,2783.9,2783.3,23.56795]
[1643773241406,0.35899999,2783.9,2783.3,2.49795]
[1643773241907,0.35899999,2783.9,2783.4,0.515]
[1643773242315,0.35899999,2783.9,2783.5,21.07]
[1643773242511,0.35899999,2783.9,2783.7,21.07]
[1643773242709,0.35899999,2783.9,2783.8,5.81270027]
[1643773242915,0.35899999,2783.9,2783.8,6.62770027]
[1643773243111,0.35899999,2783.9,2783.8,27.69770027]
[1643773243311,0.35899999,2783.9,2783.8,24.89770027]
[1643773243510,0.35899999,2783.9,2783.8,24.84770027]
[1643773243944,0.35899999,2783.9,2783.8,3.67770027]
[1643773245151,0.35899999,2783.9,2783.8,24.74770027]
[1643773246352,0.35899999,2783.9,2783.8,3.67770027]
[1643773246552,0.35899999,2783.9,2783.8,1.665]
[1643773246753,0.35899999,2783.9,2783.8,0.665]
[1643773246953,0.35899999,2783.9,2783.8,2.4387726]
[1643773247153,0.35899999,2783.9,2783.8,3.4387726]
[1643773249601,1.1565,2784.4,2783.8,24.7571726]
[1643773249806,0.87990357,2785.6,2784.1,0.89761]
[1643773249807,0.1794,2785.0,2784.1,0.89761]
[1643773250003,0.1794,2785.1,2784.2,23.79794718]
[1643773250210,1.51768939,2785.0,2784.3,0.515]
[1643773250406,1.51768939,2785.0,2784.4,1.95882803]
[1643773250604,1.51768939,2785.0,2784.5,0.515]
[1643773250805,1.51768939,2785.0,2784.5,1.515]
[1643773251446,1.51768939,2785.0,2784.6,1.99768518]
[1643773251747,5.1335,2785.2,2784.7,0.515]
[1643773251953,1.2309,2785.2,2784.7,2.73510429]
[1643773252144,1.2309,2785.2,2784.7,1.815]
[1643773252752,1.2309,2785.2,2784.7,0.515]
[1643773252948,1.2309,2785.2,2784.7,1.41243]
[1643773253149,1.2309,2785.2,2784.8,0.89748]
[1643773253348,1.2309,2785.2,2784.9,0.515]
[1643773253957,1.2309,2785.2,2784.4,1.0]
[1643773253958,1.51756853,2785.1,2784.4,1.0]
[1643773254150,3.51004247,2785.1,2784.4,1.0]
[1643773254350,0.41270588,2784.6,2784.3,0.1794]
[1643773255200,0.73226189,2784.8,2784.3,0.1794]
[1643773255411,1.51777988,2784.7,2784.2,0.515]
[1643773255805,1.51777988,2784.7,2784.1,1.3]
[1643773256006,1.51777988,2784.7,2783.9,0.1794]
[1643773256007,3.51603094,2784.7,2783.9,1.1794]
[1643773256207,0.42894499,2784.3,2783.8,2.5922]
[1643773256406,0.42894499,2784.3,2783.8,2.7128]
[1643773256605,0.42894499,2784.3,2783.8,1.7128]
[1643773257807,1.24942105,2784.3,2783.8,1.7128]
[1643773258016,0.42894499,2784.3,2783.8,1.7128]
[1643773259052,0.42894499,2784.3,2783.8,0.8978]
[1643773259256,0.42894499,2784.3,2783.7,1.3]
[1643773259855,0.42894499,2784.3,2783.6,1.1794]
[1643773260055,0.42894499,2784.3,2783.6,0.1794]
[1643773260261,1.21910091,2784.3,2783.6,1.1794]
[1643773260459,1.21910091,2784.3,2783.6,0.1794]
[1643773261261,1.51789609,2784.2,2783.7,1.19782]
[1643773261463,1.21910091,2784.3,2783.7,1.19782]
[1643773262261,0.1794,2784.6,2783.7,1.19782]
[1643773262463,0.1794,2784.6,2784.0,0.89774]
[1643773262716,1.51782897,2784.5,2784.0,0.89774]
[1643773263313,0.38756875,2784.4,2784.0,0.89774]
[1643773264009,0.1794,2784.6,2784.0,1.19774]
[1643773264210,1.5178188,2784.5,2784.0,1.19774]
[1643773264508,1.5178188,2784.5,2784.0,1.71274]
[1643773264712,1.5178188,2784.4,2784.0,1.71274]
[1643773264909,1.5178188,2784.3,2784.0,1.71274]
[1643773265111,1.91807104,2784.7,2784.0,1.71274]
[1643773265309,0.41366965,2784.3,2784.0,1.71274]
[1643773266113,1.91807104,2784.7,2784.0,1.71274]
[1643773266315,1.5178167,2784.6,2784.0,1.71274]
[1643773267561,0.34189216,2784.4,2784.0,1.71274]
[1643773267961,1.91807104,2784.7,2784.0,1.71274]
[1643773268267,1.51776967,2784.6,2784.0,1.71274]
[1643773268860,0.32598238,2784.5,2784.0,1.71274]
[1643773269061,1.51776967,2784.4,2784.0,1.71274]
[1643773269462,1.51776967,2784.3,2784.0,1.71274]
[1643773269661,1.51776967,2784.6,2784.0,1.71274]
[1643773269861,1.91807104,2784.7,2784.0,1.71274]
[1643773269862,1.51777262,2784.5,2784.0,1.71274]
[1643773270063,1.91807104,2784.7,2784.0,1.71274]
[1643773270064,1.51777262,2784.4,2784.0,1.71274]
[1643773270301,1.51777262,2784.3,2784.0,1.71274]
[1643773270496,1.91807104,2784.7,2784.0,1.71274]
[1643773270698,1.51778786,2784.6,2784.0,1.71274]
[1643773271300,1.51778786,2784.6,2784.0,2.89214]
[1643773272098,0.34341359,2784.5,2784.0,2.89214]
[1643773272399,1.51778786,2784.4,2784.0,1.9944]
[1643773272600,1.51663619,2784.4,2784.0,1.815]
[1643773273951,1.91807104,2784.7,2784.1,0.89767]
[1643773274351,1.91807104,2784.7,2784.1,1.89767]
[1643773274551,1.91807104,2784.7,2784.1,0.89767]
[1643773274853,0.44446905,2784.6,2784.2,0.515]
[1643773275051,0.1794,2784.8,2784.3,21.07]
[1643773275258,2.42858446,2784.9,2784.5,0.89751]
[1643773275456,2.42858446,2784.9,2784.6,0.515]
[1643773275855,10.0,2785.0,2784.6,0.815]
[1643773277262,10.0,2785.0,2784.7,1.19753]
[1643773277458,10.0,2785.0,2784.8,0.515]
[1643773293405,9.99884364,2785.0,2784.8,0.515]
[1643773295507,9.99884364,2785.0,2784.8,0.815]
[1643773296107,9.99884364,2785.0,2784.8,0.515]
[1643773300060,9.99884364,2785.0,2784.8,0.393232]
[1643773304152,9.99884364,2785.0,2784.8,21.463232]
[1643773304350,9.99884364,2785.0,2784.9,1.0]
[1643773304553,9.99884364,2785.0,2784.9,1.515]
[1643773304757,9.99884364,2785.0,2784.9,0.515]
[1643773311849,11.51628947,2785.0,2784.9,0.515]
[1643773312050,9.99884364,2785.0,2784.9,0.515]
[1643773312457,11.51629352,2785.0,2784.9,0.515]
[1643773312651,9.99884364,2785.0,2784.9,0.515]
[1643773312849,11.51626997,2785.0,2784.9,0.515]
[1643773313050,9.99884364,2785.0,2784.9,0.515]
[1643773313852,11.51627391,2785.0,2784.9,0.515]
[1643773314156,11.51628115,2785.0,2784.9,0.515]
[1643773314350,9.99884364,2785.0,2784.9,0.515]
[1643773314551,11.51628126,2785.0,2784.9,0.515]
[1643773315810,11.51628126,2785.0,2784.7,0.89753]
[1643773316011,11.51628126,2785.0,2784.6,1.9743]
[1643773316012,3.51743762,2784.9,2784.6,1.9743]
[1643773316210,1.51743762,2784.8,2784.6,0.1794]
[1643773316410,0.41038946,2784.7,2784.6,0.1794]
[1643773316611,1.92782708,2784.7,2784.6,0.1794]
[1643773317012,1.92782708,2784.7,2784.4,0.89768]
[1643773317213,0.41038946,2784.7,2784.4,0.89768]
[1643773318310,0.41038946,2784.7,2784.4,1.19768]
[1643773318953,1.51756647,2784.6,2784.4,1.19768]
[1643773319351,0.41038946,2784.7,2784.4,1.19768]
[1643773319656,0.41038946,2784.7,2784.4,1.14768]
[1643773320052,1.51754504,2784.6,2784.4,1.14768]
[1643773320266,0.41038946,2784.7,2784.4,1.14768]
[1643773320762,0.73996475,2784.6,2784.4,0.89768]
[1643773322261,1.51758351,2784.5,2784.4,0.89768]
[1643773322462,1.51758351,2784.6,2784.4,0.89768]
[1643773324105,0.41038946,2784.7,2784.4,0.89768]
[1643773324704,1.51754428,2784.6,2784.4,0.89768]
[1643773325105,0.41038946,2784.7,2784.4,0.89768]
[1643773325311,1.2235,2784.9,2784.4,3.09526]
[1643773325518,1.2235,2784.9,2784.5,1.98337568]
[1643773325713,9.99884364,2785.0,2784.6,1.41244]
[1643773325909,9.99884364,2785.0,2784.6,1.71244]
[1643773326111,9.99884364,2785.0,2784.7,1.79492]
[1643773326466,9.99884364,2785.0,2784.8,0.515]
[1643773328172,9.99884364,2785.0,2784.9,0.89748]
[1643773328368,9.99884364,2785.0,2784.9,1.71248]
[1643773330408,11.51620119,2785.0,2784.9,1.71248]
[1643773330610,11.5162002,2785.0,2784.9,1.71248]
[1643773330811,9.99884364,2785.0,2784.9,1.71248]
[1643773331007,11.51620165,2785.0,2784.9,1.71248]
[1643773332209,11.516209,2785.0,2784.9,1.71248]
[1643773332411,6.5,2784.8,2784.1,2.04519]
[1643773332618,0.43893467,2784.2,2783.4,2.813043]
[1643773332918,0.43893467,2784.2,2783.0,3.6144]
[1643773332919,0.01219069,2783.7,2783.2,0.143622]
[1643773333123,0.01219069,2783.7,2782.6,7.47]
[1643773333326,1.51809437,2783.6,2782.7,0.1796]
[1643773333514,0.87509801,2782.6,2782.5,0.25]
[1643773333710,0.87509801,2782.6,2782.0,0.00189396]
[1643773333711,0.44471273,2782.2,2782.1,0.1796]
[1643773334364,0.62441273,2782.2,2782.1,0.1796]
[1643773334761,1.50961984,2782.2,2781.4,7.47]
[1643773334961,0.8986507,2782.0,2781.4,7.47]
[1643773335166,0.1797,2781.9,2781.4,7.47]
[1643773336367,2.13886795,2781.9,2781.4,7.47]
[1643773336568,2.13886795,2781.9,2780.8,7.47]
[1643773336773,0.8987692,2781.8,2780.8,7.47]
[1643773336970,2.3639989,2781.7,2780.8,7.47]
[1643773337369,0.7791437,2781.3,2780.8,7.47]
[1643773338014,0.40024272,2781.1,2780.8,7.47]
[1643773338215,0.40024272,2781.1,2780.8,7.77]
[1643773339418,0.7791437,2781.3,2780.8,7.77]
[1643773340020,2.3639989,2781.7,2780.9,1.0]
[1643773340021,0.1797,2781.7,2780.9,1.0]
[1643773340224,0.1797,2781.7,2781.0,21.585]
[1643773340418,0.1797,2781.7,2781.1,2.0]
[1643773340619,0.1797,2781.7,2781.2,21.07]
[1643773340820,0.1797,2781.7,2781.3,1.0]
[1643773341864,0.1797,2781.7,2781.2,3.39696]
[1643773342064,0.1797,2781.7,2781.2,2.39696]
[1643773342262,0.1797,2781.7,2781.3,3.0477606]
[1643773342462,0.1797,2781.7,2781.3,2.0477606]
[1643773342663,0.1797,2781.7,2781.4,1.0]
[1643773342865,0.1797,2781.7,2781.5,2.85756639]
[1643773343063,0.1797,2781.7,2781.6,1.98230769]
[1643773343264,0.1797,2781.7,2781.6,2.98230769]
[1643773343466,0.1797,2781.7,2781.5,4.11686038]
[1643773343665,0.1797,2781.7,2781.5,3.11686038]
[1643773343870,0.1797,2781.7,2781.6,1.91706864]
[1643773344366,0.1797,2781.7,2781.5,3.16886963]
[1643773345613,0.1797,2781.7,2781.5,1.19855]
[1643773347116,0.1797,2781.7,2781.5,3.15184363]
[1643773347316,0.69757506,2782.4,2781.5,1.19855]
[1643773347518,0.1797,2782.3,2781.5,1.19855]
[1643773347720,0.1797,2782.3,2781.5,3.14036751]
[1643773348121,0.1797,2782.3,2781.5,1.19855]
[1643773348716,0.42356783,2782.2,2781.5,1.19855]
[1643773348961,0.1797,2782.1,2781.5,1.19855]
[1643773349758,0.1797,2782.1,2781.5,3.1326642]
[1643773349965,0.1797,2782.1,2781.5,1.19855]
[1643773350159,0.1797,2782.1,2781.5,0.3]
[1643773350565,0.1797,2782.1,2781.2,2.09696]
[1643773350767,0.1797,2782.1,2781.2,3.09696]
[1643773351065,0.1797,2782.1,2781.2,2.09696]
[1643773351267,0.1797,2782.1,2781.3,1.0]
[1643773351471,0.1797,2782.1,2781.2,3.39696]
[1643773352468,0.1797,2782.1,2781.3,1.9552602]
[1643773352705,0.1797,2782.1,2781.3,1.0]
[1643773353609,0.1797,2782.1,2781.4,1.97204502]
[1643773353807,0.1797,2782.1,2781.4,2.87058502]
[1643773354014,0.1797,2782.3,2781.4,3.87058502]
[1643773354205,0.1797,2782.3,2781.4,24.34204502]
[1643773354206,0.17887898,2782.3,2781.4,24.34204502]
[1643773354408,1.2084,2782.6,2781.4,24.85704502]
[1643773354409,0.1797,2782.5,2781.4,24.85704502]
[1643773355611,0.1797,2782.5,2781.4,24.75704502]
[1643773356011,0.1797,2782.5,2781.7,0.89846]
[1643773356211,0.1797,2782.5,2781.7,1.71346]
[1643773357459,0.1797,2782.5,2781.8,1.9953271]
[1643773357662,0.1797,2782.5,2781.9,0.89837]
[1643773357860,1.3881,2782.6,2782.0,23.585]
[1643773358062,5.7318683,2783.4,2782.0,23.885]
[1643773358063,0.1797,2783.0,2782.0,23.885]
[1643773358260,0.1796,2783.2,2782.1,1.0]
[1643773358460,0.82045579,2782.6,2782.2,0.515]
[1643773358659,0.1796,2783.2,2782.2,0.515]
[1643773358860,0.34337356,2782.7,2782.2,0.515]
[1643773359060,0.34337356,2782.7,2782.3,0.3]
[1643773359266,0.34337356,2782.7,2782.0,1.515]
[1643773359760,0.34337356,2782.7,2782.0,0.515]
[1643773360319,0.34337356,2782.7,2782.1,1.79642]
[1643773360520,1.077925,2783.2,2782.1,2.39642]
[1643773360719,1.077925,2783.2,2782.1,3.39642]
[1643773360923,1.077925,2783.2,2781.7,1.79646]
[1643773360924,2.377925,2783.2,2781.7,1.79646]
[1643773361129,3.378625,2783.2,2781.3,2.31167]
[1643773361322,4.678625,2783.2,2781.3,2.31167]
[1643773361520,1.05679681,2782.4,2781.3,2.31167]
[1643773362121,1.05679681,2782.4,2781.7,1.79673]
[1643773362522,1.05679681,2782.4,2781.7,2.09673]
[1643773362923,1.05679681,2782.4,2781.7,0.3]
[1643773363127,1.05679681,2782.4,2781.3,0.3]
[1643773363323,1.05679681,2782.4,2781.3,1.99168921]
[1643773363522,1.05679681,2782.4,2781.2,3.59537037]
[1643773363722,0.32216047,2781.5,2781.4,1.7969]
[1643773363974,1.05679681,2782.4,2780.9,7.5276]
[1643773363975,1.5764,2781.6,2780.9,7.5276]
[1643773364169,1.5764,2781.6,2780.9,7.2776]
[1643773364370,1.1262,2781.6,2780.5,2.15821749]
[1643773364579,1.1262,2781.6,2780.5,23.22821749]
[1643773364771,1.1262,2781.6,2780.6,0.89869]
[1643773364971,1.1262,2781.6,2780.7,2.02754072]
[1643773365173,1.1262,2781.6,2781.0,1.79721]
[1643773365377,0.69623455,2781.5,2781.0,2.09721]
[1643773365576,0.69623455,2781.5,2781.0,2.39721]
[1643773365878,1.1262,2781.6,2781.0,2.39721]
[1643773366076,0.1797,2781.8,2781.0,2.39721]
[1643773367281,0.5424045,2781.8,2781.0,2.39721]
[1643773368016,0.67771014,2781.6,2781.0,2.39721]
[1643773368417,0.67771014,2781.6,2781.0,1.79721]
[1643773368619,1.44341014,2781.6,2780.7,1.79738]
[1643773368824,1.62311014,2781.6,2780.7,3.39738]
[1643773370422,1.62311014,2781.6,2780.7,5.32365846]
[1643773370621,1.62311014,2781.6,2780.7,5.35961564]
[1643773372859,1.62311014,2781.6,2780.9,0.8987]
[1643773372860,0.9454,2781.6,2780.9,0.8987]
[1643773373065,0.1797,2781.7,2781.0,2.60729534]
[1643773373262,0.1797,2781.7,2781.0,4.40445534]
[1643773373459,0.1797,2781.7,2781.1,1.0]
[1643773373661,1.2205,2781.8,2781.2,2.74463895]
[1643773373862,1.2205,2781.8,2781.3,1.0]
[1643773374160,0.1797,2782.1,2781.4,2.80682879]
[1643773374360,1.01962881,2782.2,2781.5,0.89852]
[1643773374562,1.01962881,2782.2,2781.4,0.815]
[1643773375410,0.8986524,2782.1,2781.4,0.815]
[1643773375612,0.8986524,2782.1,2781.4,0.515]
[1643773375613,0.1797,2782.0,2781.4,0.515]
[1643773379158,0.17831278,2782.0,2781.4,0.515]
[1643773379762,0.1797,2782.1,2781.5,0.89852]
[1643773379969,0.1797,2782.4,2781.5,1.41352]
[1643773380163,1.51875466,2782.3,2781.5,1.71352]
[1643773380375,0.1797,2782.2,2781.6,2.01117208]
[1643773380564,0.1797,2782.4,2781.6,2.01117208]
[1643773380763,0.1797,2782.4,2781.5,1.54075703]
[1643773380764,0.86867535,2782.2,2781.5,1.54075703]
[1643773380965,0.86867535,2782.2,2781.5,1.41352]
[1643773382169,0.86867535,2782.2,2781.5,1.71352]
[1643773384315,0.86867535,2782.2,2781.5,0.815]
[1643773384715,0.33354616,2782.3,2781.5,0.515]
[1643773384916,0.1797,2782.2,2781.5,0.515]
[1643773385123,0.8986309,2782.1,2781.5,0.515]
[1643773386121,1.6874797,2782.1,2781.5,0.515]
[1643773389786,0.8986309,2782.1,2781.5,0.515]
[1643773390208,0.1797,2782.3,2781.5,0.815]
[1643773390417,0.1797,2782.1,2781.6,1.94359756]
[1643773390610,0.1797,2782.4,2781.6,1.94359756]
[1643773390812,0.1797,2782.4,2781.6,2.24359756]
[1643773391213,0.1797,2782.4,2781.6,3.19359756]
[1643773391411,0.1797,2782.4,2781.6,2.19359756]
[1643773391612,0.4317743,2782.3,2781.6,2.19359756]
[1643773391814,0.1797,2782.2,2781.6,1.25]
[1643773392013,0.1797,2782.2,2781.6,0.25]
[1643773392215,0.1797,2782.2,2781.4,2.19854]
[1643773392616,0.1797,2782.2,2781.4,3.13460186]
[1643773392815,0.1797,2782.2,2781.5,1.0]
[1643773393216,0.1797,2782.2,2781.4,1.49854]
[1643773393415,0.1797,2782.2,2781.4,1.19854]
[1643773393815,0.1797,2782.2,2781.4,1.49854]
[1643773394058,0.1797,2782.2,2781.4,1.19854]
[1643773394763,0.1797,2782.2,2781.4,3.44709491]
[1643773394960,0.1797,2782.2,2781.5,0.515]
[1643773395163,0.1797,2782.2,2781.5,1.515]
[1643773396866,0.1797,2782.2,2781.5,0.515]
[1643773397467,0.1797,2782.2,2781.5,0.815]
[1643773397725,0.1797,2782.2,2781.5,1.815]
[1643773398721,0.1797,2782.2,2781.5,1.515]
[1643773399123,0.1797,2782.2,2781.5,0.515]
[1643773399422,0.1797,2782.2,2781.5,1.515]
[1643773399622,0.1797,2782.2,2781.5,0.515]
[1643773399823,0.1797,2782.2,2781.5,1.515]
[1643773400124,0.1797,2782.2,2781.5,0.815]
[1643773400324,0.1797,2782.2,2781.5,1.815]
[1643773400524,1.0782809,2782.2,2781.5,0.515]
[1643773400729,0.8985809,2782.2,2781.5,1.515]
[1643773401959,1.29374768,2782.2,2781.5,1.515]
[1643773402160,1.29374768,2782.2,2781.5,0.515]
[1643773402358,1.29374768,2782.2,2781.5,1.515]
[1643773402560,1.29374768,2782.2,2781.5,0.515]
[1643773402759,1.29374768,2782.2,2781.5,1.515]
[1643773402961,1.29374768,2782.2,2781.5,0.515]
[1643773403162,1.29374768,2782.2,2781.5,1.515]
[1643773403369,1.29374768,2782.2,2781.5,0.515]
[1643773403861,0.8985809,2782.2,2781.4,1.19854]
[1643773404061,0.8985809,2782.2,2781.4,1.49854]
[1643773405718,1.51885716,2782.1,2781.4,0.89854]
[1643773405927,0.8986817,2781.9,2781.0,1.79726]
[1643773406121,1.51885716,2781.8,2780.9,0.25]
[1643773406319,1.69855716,2781.8,2780.7,3.1811]
[1643773406517,2.67015716,2781.7,2780.7,3.1811]
[1643773406717,0.1797,2781.6,2780.7,3.1811]
[1643773406917,1.2499,2781.6,2780.7,3.1811]
[1643773407116,1.2499,2781.6,2780.7,5.27853]
[1643773407317,1.2499,2781.6,2780.7,2.09743]
[1643773407522,0.42653678,2781.4,2780.7,2.09743]
[1643773407723,1.2499,2781.6,2780.7,3.09743]
[1643773408121,0.82512774,2781.4,2780.7,3.09743]
[1643773409865,0.8988606,2781.3,2780.7,1.3]
[1643773410873,0.1797,2781.6,2780.7,4.42226696]
[1643773411076,0.1797,2781.8,2780.8,23.48197608]
[1643773411272,3.1563,2782.3,2780.8,23.48197608]
[1643773411273,1.3685,2782.2,2781.0,21.37]
[1643773411472,1.3685,2782.2,2781.2,21.07]
[1643773411670,1.1888,2782.2,2781.3,24.01784268]
[1643773411869,1.1888,2782.2,2781.4,1.3]
[1643773412069,1.1888,2782.2,2781.6,0.89842]
[1643773412270,1.1888,2782.2,2781.7,0.515]
[1643773414513,1.18756927,2782.2,2781.7,0.515]
[1643773416125,0.1797,2782.5,2781.8,0.89845]
[1643773416327,5.3124,2782.7,2781.9,2.13882063]
[1643773416572,1.3511,2782.7,2781.9,4.75052063]
[1643773416769,1.3511,2782.7,2781.9,5.75052063]
[1643773416770,1.51871469,2782.6,2781.9,5.75052063]
[1643773417573,1.51871469,2782.6,2781.9,3.6117]
[1643773418179,1.51871469,2782.6,2782.1,0.89835]
[1643773418477,1.51871469,2782.6,2782.2,0.515]